bitfinex-derivatives/quotes_BNBF0:USTF0_20250709
["timestamp","ask_amount","ask_price","bid_price","bid_amount"]
[1752084288697,1.69425376,663.14,662.69,8.116]
[1752084291198,1.69425376,663.14,662.69,9.81063681]
[1752084291398,1.69425376,663.14,662.69,8.116]
[1752084295101,1.69425376,663.13,662.69,9.81063681]
[1752084295397,1.69425376,663.13,662.69,8.116]
[1752084296300,1.69425376,663.13,662.69,9.81063681]
[1752084297304,1.69425376,663.12,662.7,1.69463681]
[1752084298506,1.69425376,663.11,662.71,1.69463681]
[1752084299205,1.69425376,663.1,662.72,1.69463681]
[1752084301304,1.69425376,663.08,662.75,1.69463681]
[1752084302609,1.69425376,663.09,662.75,1.69463681]
[1752084303110,1.69425376,663.09,662.74,1.69463681]
[1752084305305,1.69425376,663.09,662.75,1.69463681]
[1752084307210,1.69425376,663.08,662.75,1.69463681]
[1752084307410,1.69425376,663.09,662.75,1.69463681]
[1752084308206,1.69425376,663.09,662.74,1.69463681]
[1752084309712,1.69425376,663.09,662.75,1.69463681]
[1752084310509,1.69425376,663.08,662.75,1.69463681]
[1752084311612,1.69425376,663.09,662.74,1.69463681]
[1752084312111,1.69425376,663.09,662.75,1.69463681]
[1752084312511,1.69425376,663.08,662.75,1.69463681]
[1752084313016,1.69425376,663.08,662.76,1.69463681]
[1752084313211,1.69425376,663.08,662.75,1.69463681]
[1752084317923,1.69425376,663.09,662.73,1.69463681]
[1752084318222,1.69425376,663.09,662.74,1.69463681]
[1752084319321,1.69425376,663.1,662.73,1.69463681]
[1752084320723,1.69425376,663.09,662.73,1.69463681]
[1752084321619,1.69425376,663.09,662.74,1.69463681]
[1752084327324,1.69425376,663.1,662.73,1.69463681]
[1752084327624,1.69425376,663.09,662.74,1.69463681]
[1752084329330,1.69425376,663.09,662.69,8.116]
[1752084329331,1.69425376,663.08,662.75,1.69463681]
[1752084329627,1.69425376,663.09,662.75,1.69463681]
[1752084332131,1.69425376,663.11,662.7,1.69463681]
[1752084335429,1.69425376,663.11,662.71,1.69463681]
[1752084335629,1.69425376,663.11,662.71,11.40663681]
[1752084336433,1.69425376,663.11,662.71,9.712]
[1752084336929,1.69425376,663.11,662.71,11.40663681]
[1752084342030,1.69425376,663.09,662.75,1.69463681]
[1752084342530,1.69425376,663.09,662.71,9.712]
[1752084342531,1.69425376,663.09,662.73,1.69463681]
[1752084345434,1.69425376,663.09,662.72,1.69463681]
[1752084345630,1.69425376,663.1,662.73,1.69463681]
[1752084346330,1.69425376,663.09,662.73,1.69463681]
[1752084346729,1.69425376,663.09,662.72,1.69463681]
[1752084347135,1.69425376,663.08,662.73,1.69463681]
[1752084347536,1.69425376,663.08,662.72,1.69463681]
[1752084349931,1.69425376,663.09,662.71,11.40663681]
[1752084352336,1.69425376,663.09,662.72,1.69463681]
[1752084352536,1.69425376,663.09,662.71,9.712]
[1752084352537,1.69425376,663.09,662.71,11.40663681]
[1752084355133,1.69425376,663.09,662.72,1.69463681]
[1752084355332,1.69425376,663.09,662.71,11.40663681]
[1752084355537,1.69425376,663.09,662.71,1.69463681]
[1752084356037,1.69425376,663.09,662.72,1.69463681]
[1752084356937,1.69425376,663.09,662.71,1.69463681]
[1752084359039,1.69425376,663.09,662.72,10.165]
[1752084359741,1.69425376,663.07,662.74,1.69463681]
[1752084360041,1.69425376,663.09,662.72,11.85963681]
[1752084362436,1.69425376,663.08,662.72,11.85963681]
[1752084363744,1.69425376,663.09,662.72,10.165]
[1752084365344,1.69425376,663.1,662.72,10.165]
[1752084367846,1.69425376,663.11,662.72,10.165]
[1752084368443,1.69425376,663.1,662.72,10.165]
[1752084369847,1.69425376,663.1,662.72,11.85963681]
[1752084373849,3.38850103,663.35,662.72,11.85963681]
[1752084373850,1.69425376,663.08,662.74,1.69463681]
[1752084377850,1.69425376,663.07,662.75,1.69463681]
[1752084379556,1.69425376,663.08,662.75,1.69463681]
[1752084379756,1.69425376,663.07,662.75,1.69463681]
[1752084379955,1.69425376,663.08,662.75,1.69463681]
[1752084380353,1.69425376,663.08,662.74,1.69463681]
[1752084384656,1.69425376,663.09,662.73,1.69463681]
[1752084385360,1.69425376,663.09,662.72,11.85963681]
[1752084385759,1.69425376,663.09,662.73,1.69463681]
[1752084387461,1.69425376,663.09,662.73,1.69707906]
[1752084387462,1.69704466,663.09,662.73,1.69707906]
[1752084390765,1.69704466,663.08,662.73,1.69707906]
[1752084390964,1.69704466,663.08,662.74,1.69707906]
[1752084392068,1.69704466,663.1,662.72,10.165]
[1752084395167,1.69704466,663.1,662.72,11.86207906]
[1752084397167,1.69704466,663.09,662.72,11.86207906]
[1752084401873,1.69704466,663.08,662.74,1.69707906]
[1752084402174,1.69704466,663.07,662.75,1.69707906]
[1752084402369,1.69704466,663.07,662.72,10.165]
[1752084402370,1.69704466,663.07,662.74,1.69707906]
[1752084402571,1.69704466,663.07,662.75,1.69707906]
[1752084403572,1.69704466,663.07,662.74,1.69707906]
[1752084404573,1.69704466,663.08,662.74,1.69707906]
[1752084405673,1.69704466,663.07,662.74,1.69707906]
[1752084406172,1.69704466,663.07,662.75,1.69707906]
[1752084410373,1.69704466,663.22,662.52,1.69707906]
[1752084411577,1.69704466,663.17,662.48,1.69707906]
[1752084412280,1.69704466,663.18,662.47,1.69707906]
[1752084413084,1.69704466,663.18,662.48,8.668]
[1752084415184,1.69704466,663.19,662.48,8.668]
[1752084416087,1.69704466,663.18,662.48,8.668]
[1752084416287,1.69704466,663.19,662.48,8.668]
[1752084419189,1.69704466,663.2,662.48,8.668]
[1752084420286,1.69704466,663.12,662.58,1.69707906]
[1752084420889,1.69704466,663.12,662.57,1.69707906]
[1752084421086,1.69704466,663.12,662.58,1.69707906]
[1752084421291,1.69704466,663.1,662.6,1.69707906]
[1752084422086,1.69704466,663.09,662.6,1.69707906]
[1752084423391,1.69704466,663.1,662.6,1.69707906]
[1752084423589,1.69704466,663.09,662.6,1.69707906]
[1752084424193,1.69704466,663.1,662.6,1.69707906]
[1752084424593,1.69704466,663.08,662.62,1.69707906]
[1752084427296,1.69704466,663.09,662.61,1.69707906]
[1752084428697,1.69704466,663.09,662.62,1.69707906]
[1752084428898,1.69704466,663.05,662.67,1.69707906]
[1752084429294,1.69704466,663.06,662.66,1.69707906]
[1752084436202,1.69704466,663.07,662.65,1.69707906]
[1752084439407,1.69704466,663.06,662.66,1.69707906]
[1752084439807,3.38850103,663.28,662.48,8.668]
[1752084439808,1.69704466,663.07,662.65,1.69707906]
[1752084446012,1.69704466,663.06,662.65,1.69707906]
[1752084447114,1.69704466,663.06,662.66,1.69707906]
[1752084448016,1.69704466,663.07,662.66,1.69707906]
[1752084448716,1.69704466,663.06,662.65,1.69707906]
[1752084449616,1.69704466,663.06,662.67,1.69707906]
[1752084449915,1.69704466,663.06,662.66,1.69707906]
[1752084450113,1.69704466,663.08,662.63,1.69707906]
[1752084450614,1.69704466,663.08,662.64,1.69707906]
[1752084452116,1.69704466,663.07,662.64,1.69707906]
[1752084452820,1.69704466,663.08,662.63,1.69707906]
[1752084455322,1.69704466,663.08,662.64,1.69707906]
[1752084456219,1.69704466,663.07,662.64,1.69707906]
[1752084456522,1.69704466,663.08,662.64,1.69707906]
[1752084457323,1.69704466,663.07,662.64,1.69707906]
[1752084457624,1.69704466,663.12,662.59,1.69707906]
[1752084459921,1.69704466,663.12,662.6,1.69707906]
[1752084460321,1.69704466,663.11,662.6,1.69707906]
[1752084461421,1.69704466,663.12,662.61,1.69707906]
[1752084461724,1.69704466,663.13,662.59,1.69707906]
[1752084461924,1.69704466,663.14,662.59,1.69707906]
[1752084462124,1.69704466,663.14,662.44,10.44]
[1752084462125,1.69704466,663.11,662.65,1.69707906]
[1752084462324,1.69704466,663.14,662.68,1.69707906]
[1752084463023,1.69704466,663.14,662.67,1.69707906]
[1752084463825,1.69704466,663.14,662.68,1.69707906]
[1752084464027,1.69704466,663.15,662.67,1.69707906]
[1752084464524,1.69704466,663.14,662.67,1.69707906]
[1752084465026,1.69704466,663.28,662.81,1.69707906]
[1752084465228,1.69704466,663.29,662.79,1.69707906]
[1752084465425,1.69704466,663.28,662.81,1.69707906]
[1752084465726,1.69704466,663.27,662.82,1.69707906]
[1752084466026,1.69704466,663.28,662.83,1.69707906]
[1752084466226,1.69704466,663.29,662.81,1.69707906]
[1752084466523,1.69704466,663.37,662.69,1.69707906]
[1752084466721,1.69704466,663.38,662.7,1.69707906]
[1752084467126,1.69704466,663.47,662.79,1.69707906]
[1752084467426,1.69704466,663.49,662.77,1.69707906]
[1752084467827,1.69704466,663.6,662.6,1.69707906]
[1752084468330,3.38850103,664.2,662.44,10.44]
[1752084468331,1.69704466,663.61,662.58,1.69707906]
[1752084468525,1.69704466,663.6,662.57,1.69707906]
[1752084469029,1.69704466,663.51,662.48,1.69707906]
[1752084469229,1.69704466,663.51,662.47,1.69707906]
[1752084470429,1.69704466,663.52,662.47,1.69707906]
[1752084471228,1.69704466,663.52,662.46,1.69707906]
[1752084472229,1.69704466,663.53,662.46,1.69707906]
[1752084473225,1.69704466,663.53,662.45,1.69707906]
[1752084473727,1.69704466,663.53,662.46,1.69707906]
[1752084473924,1.69704466,663.54,662.46,1.69707906]
[1752084474726,1.69704466,663.54,662.45,1.69707906]
[1752084474929,1.69704466,663.54,662.47,9.114]
[1752084476133,1.69704466,663.54,662.47,10.81107906]
[1752084476837,1.69704466,663.49,662.54,1.69707906]
[1752084477132,1.69704466,663.49,662.53,1.69707906]
[1752084477333,1.69704466,663.5,662.53,1.69707906]
[1752084477834,1.69704466,663.44,662.62,1.69707906]
[1752084478034,1.69704466,663.43,662.64,1.69707906]
[1752084478238,1.69704466,663.43,662.63,1.69707906]
[1752084478739,1.69704466,663.43,662.64,1.69707906]
[1752084480234,2.25900068,663.61,662.47,9.114]
[1752084480235,1.69704466,663.42,662.65,1.69707906]
[1752084480436,1.69704466,663.4,662.69,1.69707906]
[1752084480741,1.69704466,663.36,662.74,1.69707906]
[1752084481241,1.69704466,663.37,662.74,1.69707906]
[1752084481844,1.69704466,663.35,662.76,1.69707906]
[1752084482139,1.69704466,663.36,662.74,1.69707906]
[1752084482542,1.69704466,663.41,662.67,1.69707906]
[1752084482846,1.69704466,663.42,662.68,1.69707906]
[1752084483543,1.69704466,663.43,662.67,1.69707906]
[1752084486142,1.69704466,663.44,662.67,1.69707906]
[1752084487942,1.69704466,663.44,662.47,9.114]
[1752084487943,1.69704466,663.45,662.65,1.69707906]
[1752084488448,1.69704466,663.51,662.56,1.69707906]
[1752084488642,1.69704466,663.59,662.72,1.69707906]
[1752084489144,1.69704466,663.59,662.71,1.69707906]
[1752084490243,1.69704466,663.6,662.71,1.69707906]
[1752084490443,1.69704466,663.61,662.71,1.69707906]
[1752084490747,1.69704466,663.61,662.72,10.196]
[1752084490948,1.69704466,663.59,662.74,1.69707906]
[1752084491448,1.69704466,663.58,662.75,1.69707906]
[1752084492049,1.69704466,663.58,662.76,1.69707906]
[1752084492349,1.69704466,663.58,662.77,1.69707906]
[1752084493051,1.69704466,663.59,662.78,1.69707906]
[1752084493252,1.69704466,663.61,662.75,1.69707906]
[1752084493447,1.69704466,663.63,662.73,1.69707906]
[1752084493650,1.69704466,663.61,662.76,1.69707906]
[1752084493848,1.69704466,663.61,662.75,1.69707906]
[1752084494146,5.64750172,664.69,662.75,1.69707906]
[1752084494147,1.69704466,663.81,662.92,1.69707906]
[1752084494347,1.69704466,663.79,662.94,1.69707906]
[1752084494547,1.69704466,663.76,662.99,1.69707906]
[1752084494747,1.69704466,663.79,662.99,1.69707906]
[1752084494948,0.2622852,663.81,662.99,1.69707906]
[1752084495148,0.2622852,663.81,662.98,1.69707906]
[1752084495549,0.2622852,663.81,662.99,1.69707906]
[1752084495753,0.2622852,663.81,662.97,1.69707906]
[1752084496052,0.2622852,663.81,662.72,10.196]
[1752084496053,0.2622852,663.81,662.99,1.69707906]
[1752084496352,0.2622852,663.81,662.97,1.69707906]
[1752084496549,0.2622852,663.81,662.99,1.69707906]
[1752084496753,0.2622852,663.81,663.0,1.69707906]
[1752084497154,0.2622852,663.81,662.99,1.69707906]
[1752084497553,0.2622852,663.81,663.01,1.69707906]
[1752084497754,0.2622852,663.81,663.0,1.69707906]
[1752084497951,0.2622852,663.81,662.9,1.69707906]
[1752084498256,0.2622852,663.81,662.89,1.69707906]
[1752084498552,0.2622852,663.81,662.86,1.69707906]
[1752084499151,0.2622852,663.81,662.81,1.69707906]
[1752084499451,0.2622852,663.81,662.82,1.69707906]
[1752084499750,0.2622852,663.81,662.83,1.69707906]
[1752084499955,0.2622852,663.81,662.87,1.69707906]
[1752084500155,0.2622852,663.81,662.86,1.69707906]
[1752084500356,0.2622852,663.81,662.93,1.69707906]
[1752084500551,0.2622852,663.81,662.92,1.69707906]
[1752084500752,0.2622852,663.81,662.93,1.69707906]
[1752084500956,0.2622852,663.81,662.91,1.69707906]
[1752084501756,0.2622852,663.81,662.88,1.69707906]
[1752084501956,0.2622852,663.81,662.84,1.69707906]
[1752084502456,0.2622852,663.81,662.83,1.69707906]
[1752084502959,0.2622852,663.81,662.81,1.69707906]
[1752084505557,0.2622852,663.81,662.82,1.69707906]
[1752084506255,0.2622852,663.81,662.88,1.69707906]
[1752084508361,0.2622852,663.81,662.87,1.69707906]
[1752084508761,0.2622852,663.81,662.91,1.69707906]
[1752084509260,0.2622852,663.81,662.92,1.69707906]
[1752084509458,0.2622852,663.81,662.91,1.69707906]
[1752084510659,0.2622852,663.81,662.9,1.69707906]
[1752084510858,0.2622852,663.81,662.93,1.69707906]
[1752084511258,0.2622852,663.81,662.92,1.69707906]
[1752084511462,0.2622852,663.81,662.93,1.69707906]
[1752084511662,0.2622852,663.81,662.92,1.69707906]
[1752084512860,0.2622852,663.81,662.91,1.69707906]
[1752084513265,0.2622852,663.81,662.92,1.69707906]
[1752084513465,0.2622852,663.81,662.91,1.69707906]
[1752084514162,0.2622852,663.81,662.92,1.69707906]
[1752084514562,0.2622852,663.81,662.91,1.69707906]
[1752084514763,0.2622852,663.81,662.92,1.69707906]
[1752084516066,0.2622852,663.81,662.91,1.69707906]
[1752084516466,0.2622852,663.81,662.92,1.69707906]
[1752084516766,0.2622852,663.81,662.93,1.69707906]
[1752084517066,0.2622852,663.81,662.94,1.69707906]
[1752084517264,0.2622852,663.81,662.88,1.69707906]
[1752084518163,0.2622852,663.81,662.89,1.69707906]
[1752084518462,0.2622852,663.81,662.88,1.69707906]
[1752084518666,0.2622852,663.81,662.94,1.69707906]
[1752084518866,0.2622852,663.81,662.92,1.69707906]
[1752084519270,0.2622852,663.81,662.94,1.69707906]
[1752084519567,0.2622852,663.81,662.95,1.69707906]
[1752084520467,0.2622852,663.81,662.97,1.69707906]
[1752084520768,0.2622852,663.81,662.98,1.69707906]
[1752084521366,0.2622852,663.81,663.01,1.69707906]
[1752084521567,0.2622852,663.81,663.0,1.69707906]
[1752084523371,0.2622852,663.81,663.01,1.69707906]
[1752084523567,2.25900068,663.9,663.01,1.69707906]
[1752084523768,2.25900068,664.32,663.05,1.69707906]
[1752084523968,0.2622516,663.98,663.09,1.69707906]
[1752084524168,0.2622516,663.98,663.15,1.69707906]
[1752084524365,0.2622516,663.98,663.12,1.69707906]
[1752084524665,0.2622516,663.98,663.15,1.69707906]
[1752084524969,0.2622516,663.98,663.26,1.69707906]
[1752084525169,0.2622516,663.98,663.25,1.69707906]
[1752084525468,0.2622516,663.98,663.15,1.69707906]
[1752084526171,0.2622516,663.98,663.11,1.69707906]
[1752084526371,0.2622516,663.98,663.16,1.69707906]
[1752084526770,0.2622516,663.98,663.14,1.69707906]
[1752084526970,0.2622516,663.98,663.15,1.69707906]
[1752084527166,0.2622516,663.98,663.14,1.69707906]
[1752084527370,2.25900068,664.6,663.0,1.69707906]
[1752084527566,0.26215874,664.08,663.0,1.69707906]
[1752084527865,2.25900068,664.6,663.0,1.69707906]
[1752084528070,2.25900068,664.6,663.01,1.69707906]
[1752084528269,2.25900068,664.61,663.0,1.69707906]
[1752084528470,2.25900068,664.58,663.02,1.69707906]
[1752084528668,2.25900068,664.63,663.07,1.69707906]
[1752084529171,2.25900068,664.65,663.06,1.69707906]
[1752084529366,2.25900068,664.64,663.07,1.69707906]
[1752084530072,2.25900068,664.63,663.08,1.69707906]
[1752084530269,2.25900068,664.64,663.08,1.69707906]
[1752084530768,2.25900068,664.54,663.16,1.69707906]
[1752084531274,2.25900068,664.56,663.16,1.69707906]
[1752084532276,2.25900068,664.57,663.15,1.69707906]
[1752084532577,2.25900068,664.57,663.15,1.67442293]
[1752084532774,2.25900068,664.51,663.2,1.67442293]
[1752084532973,2.25900068,664.5,663.2,1.67442293]
[1752084533272,3.38850103,664.69,663.2,1.67442293]
[1752084533273,2.25900068,664.51,663.2,1.67442293]
[1752084533474,0.26212813,664.18,663.2,1.67442293]
[1752084534072,0.26212813,664.18,663.21,1.67442293]
[1752084534277,0.26212813,664.18,663.22,1.67442293]
[1752084534476,0.26212813,664.18,663.23,1.67442293]
[1752084534973,0.26212813,664.18,663.24,1.67442293]
[1752084535172,0.26212813,664.18,663.23,1.67442293]
[1752084535376,0.26212813,664.18,663.24,1.67442293]
[1752084535876,0.26212813,664.18,663.23,1.67442293]
[1752084536377,0.26212813,664.18,663.22,1.67442293]
[1752084536978,0.26212813,664.18,663.23,1.67442293]
[1752084537474,0.26212813,664.18,663.13,1.67442293]
[1752084537679,2.25900068,664.63,663.11,1.67442293]
[1752084537873,2.25900068,664.64,663.1,1.67442293]
[1752084538074,0.26210247,664.36,663.17,1.67442293]
[1752084538273,0.26210247,664.36,663.16,1.67442293]
[1752084538476,0.26210247,664.36,662.95,2.25993218]
[1752084538477,0.26210247,664.36,663.15,1.67442293]
[1752084538779,0.26210247,664.36,663.17,1.67442293]
[1752084538974,0.26210247,664.36,663.16,1.67442293]
[1752084539278,0.26210247,664.36,663.22,1.67442293]
[1752084539476,0.26210247,664.36,663.05,2.25993218]
[1752084539477,0.26210247,664.36,663.23,1.67442293]
[1752084539675,0.26210247,664.36,663.22,1.67442293]
[1752084539878,0.26210247,664.36,663.23,1.67442293]
[1752084540379,0.26210247,664.36,663.24,1.67442293]
[1752084540575,0.26210247,664.36,663.21,1.67442293]
[1752084540777,0.26210247,664.36,663.2,1.67442293]
[1752084541382,0.26210247,664.36,663.19,1.67442293]
[1752084541681,0.26210247,664.36,663.15,1.67442293]
[1752084542679,0.26210247,664.36,663.07,1.67442293]
[1752084543278,0.26210247,664.36,663.1,1.67442293]
[1752084544185,0.26210247,664.36,663.13,1.67442293]
[1752084544384,0.26210247,664.36,663.12,1.67442293]
[1752084544583,0.26210247,664.36,663.17,1.67442293]
[1752084544784,0.26210247,664.36,663.26,1.67442293]
[1752084544979,0.26210247,664.36,663.09,2.25993218]
[1752084544980,0.26210247,664.36,663.24,1.67442293]
[1752084545184,0.26210247,664.36,663.23,1.67442293]
[1752084545883,0.26210247,664.36,663.26,1.67442293]
[1752084546084,0.26210247,664.36,663.27,1.67442293]
[1752084546780,0.26210247,664.36,663.25,1.67442293]
[1752084546980,2.25900068,664.62,663.16,1.67442293]
[1752084547186,0.26208766,664.33,663.15,1.67442293]
[1752084547481,0.26208766,664.33,662.95,0.26208766]
[1752084547482,0.26208766,664.33,663.1,1.67442293]
[1752084547884,0.26208766,664.33,663.11,1.67442293]
[1752084548280,0.26208766,664.33,663.12,1.67442293]
[1752084548480,0.26208766,664.33,663.07,1.67442293]
[1752084548887,0.26208766,664.33,663.13,1.67442293]
[1752084549484,0.26208766,664.33,663.14,1.67442293]
[1752084549685,0.26208766,664.33,663.13,1.67442293]
[1752084550186,0.26208766,664.33,663.19,1.67442293]
[1752084550583,2.25900068,664.6,663.19,1.67442293]
[1752084550784,0.2620847,664.32,663.19,1.67442293]
[1752084551083,0.2620847,664.32,663.15,0.2620847]
[1752084551783,0.2620847,664.32,663.08,10.556]
[1752084551981,0.2615047,664.32,663.26,0.2615047]
[1752084567296,3.35702891,664.07,663.48,0.24823542]
[1752084567701,3.35702891,664.05,663.48,0.24823542]
[1752084568302,3.35702891,664.04,663.48,0.24823542]
[1752084568899,3.35702891,664.05,663.48,0.24823542]
[1752084569099,5.59504819,664.61,663.48,0.24823542]
[1752084569100,3.35702891,664.07,663.48,0.24823542]
[1752084569803,3.35702891,664.06,663.48,0.24823542]
[1752084570400,3.35702891,664.05,663.48,0.24823542]
[1752084570599,3.35702891,664.02,663.48,0.24823542]
[1752084571100,3.35702891,664.01,663.48,0.24823542]
[1752084571400,3.35702891,664.02,663.48,0.24823542]
[1752084572299,3.35702891,664.01,663.48,0.24823542]
[1752084573299,3.35702891,664.0,663.48,0.24823542]
[1752084573504,3.35702891,664.1,663.48,0.24823542]
[1752084573704,3.35702891,664.09,663.48,0.24823542]
[1752084573904,3.35702891,664.08,663.48,0.24823542]
[1752084574203,3.35702891,664.07,663.48,0.24823542]
[1752084574404,3.35702891,664.06,663.48,0.24823542]
[1752084574704,3.35702891,663.89,663.48,0.24823542]
[1752084574904,3.35702891,663.94,663.48,0.24823542]
[1752084575100,3.35702891,663.93,663.48,0.24823542]
[1752084575705,3.35702891,663.9,663.48,0.24823542]
[1752084575900,3.35702891,663.92,663.48,0.24823542]
[1752084576406,3.35702891,663.9,663.48,0.24823542]
[1752084576605,3.35702891,663.92,663.48,0.24823542]
[1752084576805,3.35702891,663.91,663.48,0.24823542]
[1752084577005,3.35702891,663.9,663.48,0.24823542]
[1752084577201,3.35702891,663.88,663.48,0.24823542]
[1752084577602,5.59504819,664.4,663.58,1.67505081]
[1752084577806,7.83306747,664.66,663.59,1.53483952]
[1752084578002,7.83306747,664.66,663.6,1.53483952]
[1752084578300,7.83306747,664.66,663.56,1.67505081]
[1752084578301,3.35702891,664.71,663.61,1.53483952]
[1752084578502,3.35702891,664.71,663.62,1.53483952]
[1752084578702,3.35702891,664.71,663.63,1.53483952]
[1752084578903,3.35702891,664.71,663.64,1.53483952]
[1752084579107,3.35702891,664.72,663.65,1.53483952]
[1752084579306,3.35702891,664.68,663.66,1.53483952]
[1752084579502,3.35702891,664.68,663.67,1.53483952]
[1752084579805,3.35702891,664.77,663.68,1.53483952]
[1752084580102,3.35702891,664.74,663.69,1.53483952]
[1752084580301,3.35702891,664.74,663.58,1.67505081]
[1752084580302,3.35702891,664.74,663.7,1.53483952]
[1752084580502,3.35702891,664.73,663.71,1.53483952]
[1752084580705,3.35702891,664.73,663.72,1.53483952]
[1752084580905,5.59504819,665.35,663.73,1.53483952]
[1752084580906,3.35702891,664.74,663.73,1.53483952]
[1752084581104,3.35702891,664.71,663.74,1.53483952]
[1752084581301,3.35702891,664.7,663.75,1.53483952]
[1752084581500,3.35702891,664.7,663.48,0.24823542]
[1752084581501,3.35702891,664.72,663.76,1.53483952]
[1752084581705,3.35702891,664.72,663.77,1.53483952]
[1752084581902,3.35702891,664.73,663.78,1.53483952]
[1752084582109,0.26203043,664.49,663.79,1.53483952]
[1752084582403,0.26203043,664.49,663.8,1.53483952]
[1752084582602,0.26203043,664.49,663.81,1.53483952]
[1752084582803,0.26203043,664.49,663.82,1.53483952]
[1752084583005,0.26203043,664.49,663.83,1.53483952]
[1752084583205,0.26203043,664.49,663.84,1.53483952]
[1752084583403,0.26203043,664.49,663.85,1.53483952]
[1752084583701,0.26203043,664.49,663.86,1.53483952]
[1752084584003,0.26203043,664.49,663.87,1.53483952]
[1752084584205,0.26203043,664.49,663.77,8.716]
[1752084584406,0.26203043,664.49,663.78,1.53948698]
[1752084584705,0.26203043,664.49,663.79,1.53948698]
[1752084584904,0.26203043,664.49,663.8,1.53948698]
[1752084585104,0.26203043,664.49,663.81,1.53948698]
[1752084585301,0.26203043,664.49,663.82,1.53948698]
[1752084585506,0.26203043,664.49,663.77,8.716]
[1752084585507,0.26203043,664.49,663.83,1.53948698]
[1752084585705,0.26203043,664.49,663.84,1.53948698]
[1752084585906,0.26203043,664.49,663.85,1.53948698]
[1752084586107,0.26203043,664.49,663.86,1.53948698]
[1752084586306,0.26203043,664.49,663.87,1.53948698]
[1752084586507,0.26203043,664.49,663.77,8.716]
[1752084586810,0.26203043,664.49,663.78,1.53960303]
[1752084587009,0.26203043,664.49,663.79,1.53960303]
[1752084587206,0.26203043,664.49,663.8,1.53960303]
[1752084587406,0.26203043,664.49,663.81,1.53960303]
[1752084587611,0.26203043,664.49,663.82,1.53960303]
[1752084587811,0.26203043,664.49,663.83,1.53960303]
[1752084588111,0.26203043,664.49,663.84,1.53960303]
[1752084588311,0.26203043,664.49,663.85,1.53960303]
[1752084588510,0.26203043,664.49,663.77,8.716]
[1752084588712,0.26203043,664.49,663.78,1.53987917]
[1752084589011,0.26203043,664.49,663.79,1.53987917]
[1752084589207,0.26203043,664.49,663.8,1.53987917]
[1752084589410,0.26203043,664.49,663.81,1.53987917]
[1752084589608,0.26203043,664.49,663.82,1.53987917]
[1752084589808,0.26203043,664.49,663.83,1.53987917]
[1752084590008,0.26203043,664.49,663.84,1.53987917]
[1752084590210,0.26203043,664.49,663.77,8.716]
[1752084590211,0.26203043,664.49,663.85,1.53987917]
[1752084590415,0.26203043,664.49,663.77,8.716]
[1752084590715,0.26203043,664.49,663.78,1.53991878]
[1752084590916,0.26203043,664.49,663.79,1.53991878]
[1752084591114,0.26203043,664.49,663.8,1.53991878]
[1752084591416,0.26203043,664.49,663.81,1.53991878]
[1752084591612,0.26203043,664.49,663.82,1.53991878]
[1752084591814,0.26203043,664.49,663.83,1.53991878]
[1752084592013,0.26203043,664.49,663.84,1.53991878]
[1752084592215,0.26203043,664.49,663.85,1.53991878]
[1752084592415,0.26203043,664.49,663.77,8.716]
[1752084592714,0.26203043,664.49,663.78,1.54003957]
[1752084593017,0.26203043,664.49,663.79,1.54003957]
[1752084593214,0.26203043,664.49,663.77,8.716]
[1752084593215,0.26203043,664.49,663.8,1.54003957]
[1752084593418,0.26203043,664.49,663.81,1.54003957]
[1752084593618,0.26203043,664.49,663.82,1.54003957]
[1752084593814,0.26203043,664.49,663.83,1.54003957]
[1752084594016,0.26203043,664.49,663.84,1.54003957]
[1752084594215,0.26203043,664.49,663.85,1.54003957]
[1752084594420,0.26203043,664.49,663.77,8.716]
[1752084594617,0.26203043,664.49,663.78,1.54047567]
[1752084594821,0.26203043,664.49,663.79,1.54047567]
[1752084595019,0.26203043,664.49,663.8,1.54047567]
[1752084595221,0.26203043,664.49,663.81,1.54047567]
[1752084595419,0.26203043,664.49,663.82,1.54047567]
[1752084595720,0.26203043,664.49,663.83,1.54047567]
[1752084596018,0.26203043,664.49,663.84,1.54047567]
[1752084596223,0.26203043,664.49,663.85,1.54047567]
[1752084596519,0.26203043,664.49,663.86,1.54047567]
[1752084596718,0.26203043,664.49,663.77,8.716]
[1752084596921,0.26203043,664.49,663.78,1.54063081]
[1752084597123,1.6887747,664.2,663.77,8.716]
[1752084597618,1.6887747,664.17,663.77,8.716]
[1752084599223,1.6887747,664.16,663.77,8.716]
[1752084600919,1.6887747,664.17,663.77,8.716]
[1752084601420,1.6887747,664.18,663.77,8.716]
[1752084602122,1.6887747,664.17,663.77,8.716]
[1752084602621,1.6887747,664.18,663.77,8.716]
[1752084603622,1.6887747,664.16,663.77,8.716]
[1752084607223,1.6887747,664.17,663.77,8.716]
[1752084607427,1.6887747,664.16,663.77,8.716]
[1752084607628,1.6887747,664.22,663.77,8.716]
[1752084608123,1.6887747,664.23,663.77,8.716]
[1752084608327,1.6887747,664.22,663.77,8.716]
[1752084608925,1.6887747,664.21,663.77,8.716]
[1752084610330,1.6887747,664.2,663.77,8.716]
[1752084612729,1.6887747,664.21,663.77,8.716]
[1752084612933,1.6887747,664.2,663.56,1.67505081]